bitfinex-derivatives/quotes_SOLF0:USTF0_20250823
["timestamp","ask_amount","ask_price","bid_price","bid_amount"]
[1755926598425,4.803,208.3,208.21,4.47588009]
[1755926598624,4.803,208.3,208.22,4.47588009]
[1755926598829,4.8024,208.33,208.23,4.47254973]
[1755926599029,4.8024,208.33,208.24,4.47254973]
[1755926599427,4.8024,208.33,208.18,137.26]
[1755926599629,4.8024,208.33,208.23,4.8044]
[1755926599833,4.8024,208.33,208.24,4.47056563]
[1755926600122,4.8024,208.33,208.23,4.8044]
[1755926600727,24.0114,208.33,208.12,24.0349]
[1755926600925,2.69,208.32,208.14,175.29537814]
[1755926601131,2.69,208.32,208.15,4.47114913]
[1755926601434,24.0173,208.28,208.16,4.47423151]
[1755926601634,2.69,208.27,208.07,9.59142901]
[1755926601833,2.69,208.27,208.09,24.0389]
[1755926602031,2.69,208.27,208.13,24.0341]
[1755926602228,2.69,208.27,208.14,4.475839]
[1755926602435,2.69,208.27,208.15,4.475839]
[1755926602630,2.69,208.27,208.1,137.18]
[1755926602831,2.69,208.27,208.11,4.47321551]
[1755926603029,2.69,208.27,208.12,4.47321551]
[1755926603333,2.69,208.27,208.13,4.47321551]
[1755926603523,2.69,208.27,208.14,4.47321551]
[1755926603726,4.8044,208.24,208.15,4.8064]
[1755926604736,7.4938,208.27,208.15,4.8064]
[1755926604927,7.4938,208.27,208.17,4.8058]
[1755926606132,4.8031,208.3,208.19,4.8054]
[1755926606331,2.69,208.32,208.19,4.8054]
[1755926606937,24.0162,208.29,208.14,9.59142901]
[1755926607133,2.69,208.28,208.09,9.59142901]
[1755926607335,4.8045,208.24,208.14,4.8066]
[1755926607838,4.8045,208.24,208.09,146.75142901]
[1755926607839,2.69,208.26,208.09,146.75142901]
[1755926608141,4.8048,208.22,208.13,4.8068]
[1755926608335,2.69,208.26,208.09,146.75142901]
[1755926608336,24.0208,208.25,208.09,9.59142901]
[1755926608837,2.69,208.26,208.1,24.0377]
[1755926609030,2.69,208.26,208.09,9.59142901]
[1755926609231,2.69,208.26,208.1,4.48065659]
[1755926609433,2.69,208.26,208.15,4.8063]
[1755926610839,2.69,208.26,208.17,4.8059]
[1755926611438,7.4939,208.26,208.14,4.8064]
[1755926611631,7.4939,208.26,208.15,4.49206276]
[1755926611941,7.4939,208.26,208.16,9.29816276]
[1755926612148,7.4939,208.26,208.16,4.8061]
[1755926612437,7.4939,208.26,208.17,4.4985876]
[1755926612635,7.4939,208.26,208.18,4.4985876]
[1755926612843,7.4939,208.26,208.16,4.8061]
[1755926613044,7.4939,208.26,208.17,4.49904536]
[1755926613243,4.8044,208.24,208.18,4.49904536]
[1755926613444,2.64,208.24,208.13,4.8067]
[1755926613638,2.64,208.24,208.14,4.51031462]
[1755926613838,2.64,208.24,208.15,4.51031462]
[1755926614040,2.64,208.24,208.16,4.51031462]
[1755926614240,2.64,208.24,208.17,4.51031462]
[1755926614441,2.64,208.24,208.13,4.8067]
[1755926614442,2.64,208.24,208.18,4.51031462]
[1755926614641,2.64,208.24,208.13,4.8067]
[1755926614642,2.64,208.21,208.19,4.51031462]
[1755926614837,2.64,208.21,208.06,3.71845121]
[1755926615048,4.8057,208.19,208.07,14.85200452]
[1755926615247,2.64,208.21,208.08,12.94194844]
[1755926615448,2.64,208.21,208.09,14.86204213]
[1755926615645,2.64,208.21,208.1,4.52314199]
[1755926615845,4.8058,208.18,208.11,4.52314199]
[1755926616048,4.8058,208.18,208.12,4.52314199]
[1755926616343,24.0177,208.28,208.13,4.52314199]
[1755926616543,2.64,208.27,208.14,10.92306179]
[1755926616843,2.64,208.27,208.15,9.0081893]
[1755926617045,2.64,208.27,208.16,4.52314199]
[1755926617251,2.64,208.25,208.1,4.8074]
[1755926617445,2.64,208.25,208.11,5.83169204]
[1755926617645,2.64,208.25,208.12,14.6377071]
[1755926617947,2.64,208.25,208.13,14.6377071]
[1755926618245,2.64,208.18,208.14,4.31832168]
[1755926618549,2.64,208.18,208.06,3.71845121]
[1755926618747,2.64,208.18,208.07,14.65402152]
[1755926618947,2.64,208.18,208.08,14.65402152]
[1755926619251,2.64,208.18,208.09,14.65402152]
[1755926619449,2.64,208.18,208.1,14.65402152]
[1755926619749,2.64,208.18,208.11,14.65402152]
[1755926620045,2.64,208.18,208.12,8.81646831]
[1755926620248,4.8055,208.19,208.13,4.32363974]
[1755926620451,4.8055,208.19,208.1,4.8075]
[1755926620641,4.8055,208.19,208.11,14.64833767]
[1755926620841,4.8055,208.19,208.12,8.8201929]
[1755926621038,4.8055,208.19,208.13,4.32561901]
[1755926621238,4.805,208.22,208.1,4.8075]
[1755926621444,2.64,208.23,208.11,14.65144988]
[1755926621641,2.64,208.23,208.12,10.74019613]
[1755926621842,2.64,208.23,208.13,4.32631013]
[1755926622152,2.64,208.23,208.1,4.8075]
[1755926622349,2.64,208.18,208.01,3.71845121]
[1755926622654,2.64,208.18,208.02,8.24810768]
[1755926622952,2.64,208.18,208.03,3.91605052]
[1755926623152,24.0302,208.17,208.04,3.91689176]
[1755926623348,2.64,208.16,208.0,2.68]
[1755926623556,2.64,208.1,207.93,2.68]
[1755926623855,2.64,208.06,207.93,2.68]
[1755926624043,2.64,208.06,207.94,3.82252335]
[1755926624248,2.64,208.06,207.93,2.68]
[1755926624660,4.8102,207.99,207.93,2.68]
[1755926624949,4.8102,207.99,207.88,2.68]
[1755926625853,4.8107,207.97,207.88,2.68]
[1755926626249,24.0533,207.97,207.81,139.68]
[1755926626559,2.64,207.96,207.81,139.68]
[1755926626846,2.64,207.92,207.75,325.66]
[1755926627043,4.8128,207.88,207.75,325.66]
[1755926627442,2.64,207.88,207.75,325.66]
[1755926627652,24.0624,207.89,207.75,325.66]
[1755926627653,2.64,207.95,207.76,2.68]
[1755926627953,2.64,207.95,207.82,2.68]
[1755926628155,2.64,208.01,207.83,2.68]
[1755926628541,2.64,208.01,207.85,4.8132]
[1755926628745,4.8099,208.0,207.85,28.88]
[1755926628945,4.8099,208.0,207.85,24.0668]
[1755926629252,2.64,208.01,207.87,2.68]
[1755926629751,2.64,208.08,207.87,2.68]
[1755926629951,2.64,208.08,207.9,2.68]
[1755926630144,2.64,208.08,207.96,2.68]
[1755926630946,2.64,208.08,207.97,4.8105]
[1755926632950,2.64,208.08,207.96,2.68]
[1755926632951,7.4482,208.08,207.96,2.68]
[1755926634253,2.64,208.08,207.96,2.68]
[1755926634459,2.64,208.23,208.05,2.68]
[1755926635255,24.0243,208.22,208.06,24.0425]
[1755926635757,2.64,208.23,208.05,2.68]
[1755926635954,2.64,208.23,208.11,31.5237]
[1755926636156,2.64,208.23,208.11,7.4871]
[1755926636352,2.64,208.23,208.13,4.8067]
[1755926636658,2.64,208.23,208.12,24.0353]
[1755926637061,2.64,208.23,208.12,28.8423]
[1755926637257,2.64,208.23,208.12,4.807]
[1755926638760,7.4447,208.23,208.11,2.68]
[1755926638962,2.64,208.23,208.06,2.68]
[1755926639663,4.8052,208.21,208.08,4.8078]
[1755926640256,2.64,208.23,208.1,4.8074]
[1755926640963,7.4447,208.23,208.1,4.8074]
[1755926642452,24.0254,208.21,208.01,24.0476]
[1755926642658,2.64,208.16,207.97,2.68]
[1755926642857,4.8074,208.11,207.98,4.8103]
[1755926643063,2.64,208.11,207.97,2.68]
[1755926643959,7.4183,208.07,207.97,2.68]
[1755926644155,2.61,208.07,207.97,2.68]
[1755926644354,24.0334,208.14,207.97,7.4904]
[1755926644554,24.0334,208.14,207.99,2.59]
[1755926644555,2.61,208.14,207.99,2.59]
[1755926644865,2.61,208.14,208.01,24.0483]
[1755926645167,2.61,208.14,208.03,4.8091]
[1755926645761,7.4168,208.14,208.0,4.8097]
[1755926646361,2.61,208.14,208.0,24.0492]
[1755926647065,2.61,208.2,208.05,2.59]
[1755926647565,2.61,208.2,208.1,4.8074]
[1755926647962,2.61,208.2,208.08,24.0399]
[1755926648869,2.61,208.2,208.06,24.0424]
[1755926649169,2.61,208.2,208.05,2.59]
[1755926649473,4.806,208.17,208.05,7.3986]
[1755926650460,4.8065,208.15,208.05,7.3986]
[1755926650665,7.4165,208.15,208.05,2.59]
[1755926651261,4.8069,208.13,207.99,26.6402]
[1755926651471,4.8069,208.13,208.0,24.0491]
[1755926651865,4.8069,208.13,207.99,26.6402]
[1755926651866,7.4174,208.11,207.99,2.59]
[1755926653070,4.8079,208.09,207.99,7.4]
[1755926655374,2.61,208.11,207.95,24.0551]
[1755926655976,2.61,208.11,208.0,4.8098]
[1755926656177,2.61,208.11,207.98,2.59]
[1755926656475,7.4174,208.11,207.98,2.59]
[1755926657070,2.61,208.16,207.99,2.59]
[1755926658078,2.61,208.16,208.05,4.8087]
[1755926658573,4.8064,208.15,208.05,4.8087]
[1755926658872,4.8064,208.15,208.01,4.8094]
[1755926659078,2.61,208.14,208.01,4.8094]
[1755926660579,4.8069,208.13,208.01,4.8094]
[1755926661082,4.8069,208.13,208.03,4.8091]
[1755926661280,2.61,208.14,208.02,2.59]
[1755926661681,2.61,208.14,208.05,4.8087]
[1755926663479,4.8069,208.13,208.05,4.8087]
[1755926663682,2.61,208.14,208.05,4.8087]
[1755926664488,2.61,208.14,208.03,4.8092]
[1755926664691,2.61,208.14,208.02,26.637]
[1755926665290,7.4166,208.14,208.05,4.8087]
[1755926665490,7.4166,208.14,208.02,2.59]
[1755926665690,2.61,208.14,208.02,2.59]
[1755926666588,4.8071,208.12,208.02,7.3992]
[1755926666994,2.61,208.11,207.97,2.59]
[1755926667187,4.8089,208.04,207.95,4.8108]
[1755926669498,2.61,208.06,207.92,2.59]
[1755926670894,4.8099,208.0,207.92,2.59]
[1755926671295,4.8094,208.02,207.92,7.4017]
[1755926671490,2.61,208.1,207.92,2.59]
[1755926671694,2.61,208.1,207.94,2.59]
[1755926671893,4.8081,208.08,207.98,4.8103]
[1755926672100,2.61,208.1,207.94,2.59]
[1755926672598,2.61,208.1,207.95,4.30584058]
[1755926672799,4.8085,208.07,207.96,4.8108]
[1755926672994,4.8085,208.07,207.94,2.59]
[1755926673800,4.8085,208.07,207.95,4.3081563]
[1755926674104,4.8085,208.07,207.94,2.59]
[1755926674301,4.8085,208.07,207.95,4.30772793]
[1755926674501,4.8085,208.07,207.96,4.8108]
[1755926674702,4.8088,208.05,207.96,4.8108]
[1755926675101,2.71,208.07,207.94,2.59]
[1755926675301,4.8093,208.03,207.94,2.59]
[1755926677797,2.71,208.14,208.01,4.8095]
[1755926678198,2.71,208.14,208.0,2.61]
[1755926678398,2.71,208.14,208.03,4.8091]
[1755926679700,2.71,208.14,207.92,24.0585]
[1755926679903,2.71,208.14,207.93,8.73705482]
[1755926680103,2.71,208.14,207.96,24.054]
[1755926680302,4.807,208.13,207.98,4.8103]
[1755926680500,2.71,208.12,207.98,4.8103]
[1755926681301,4.8073,208.11,208.0,4.8098]
[1755926682705,2.71,208.1,208.0,4.8098]
[1755926683306,2.71,208.1,208.02,4.8094]
[1755926684002,2.71,208.1,207.99,4.8099]
[1755926684505,2.71,208.11,207.99,4.8099]
[1755926685406,2.71,208.1,208.01,4.8096]
[1755926686004,136.18,208.09,208.01,4.8096]
[1755926686203,2.71,208.1,208.0,24.0492]
[1755926686512,2.71,208.18,208.02,13.49880409]
[1755926686702,2.71,208.18,208.03,6.92357112]
[1755926686902,2.71,208.18,208.1,4.8075]
[1755926687303,2.71,208.18,208.04,24.0447]
[1755926687508,4.806,208.17,208.07,4.8081]
[1755926688012,2.71,208.18,208.09,4.8077]
[1755926688307,2.71,208.18,208.03,2.61]
[1755926688706,7.5158,208.18,208.08,4.808]
[1755926689512,7.5158,208.18,208.05,4.8085]
[1755926689808,7.5158,208.18,208.04,24.0445]
[1755926690708,4.8062,208.17,208.07,4.8082]
[1755926691301,2.71,208.18,208.09,4.8078]
[1755926692103,4.8054,208.2,208.09,4.8078]
[1755926692509,4.8072,208.12,207.98,2.61]
[1755926692708,2.71,208.16,207.98,2.61]
[1755926693309,4.8072,208.12,207.99,4.8101]
[1755926693509,10.88880409,208.11,207.99,4.8101]
[1755926694805,4.8076,208.1,207.99,4.8101]
[1755926695908,7.5182,208.08,207.98,2.61]
[1755926696109,10.88880409,208.01,207.91,2.61]
[1755926696409,15.69850409,208.01,207.84,2.61]
[1755926696719,15.69850409,208.01,207.86,2.61]
[1755926697012,15.69850409,208.01,207.9,7.4221]
[1755926697211,10.88880409,207.96,207.82,2.61]
[1755926697406,2.71,207.95,207.82,2.61]
[1755926697612,10.88880409,207.91,207.76,2.61]
[1755926698216,15.70080409,207.91,207.78,4.8147]
[1755926698517,10.88880409,207.91,207.76,2.61]
[1755926698814,10.88880409,207.91,207.76,7.4252]
[1755926700214,10.88880409,207.82,207.66,2.61]
[1755926700408,2.71,207.81,207.66,2.61]
[1755926701015,2.71,207.77,207.66,2.61]
[1755926701216,2.71,207.77,207.6,2.61]
[1755926701717,10.88880409,207.73,207.5,2.61]
[1755926702018,10.88880409,207.73,207.41,7.45900943]
[1755926702019,2.71,207.64,207.44,2.61]
[1755926702207,2.71,207.64,207.46,26.7219]
[1755926702604,2.71,207.64,207.46,2.61]
[1755926703415,2.71,207.64,207.47,2.59]
[1755926703919,2.71,207.64,207.48,4.8217]
[1755926704115,2.71,207.64,207.49,2.59]
[1755926704320,2.77,207.62,207.42,2.59]
[1755926704517,2.77,207.55,207.42,2.59]
[1755926705120,31.6923,207.55,207.42,2.59]
[1755926705519,4.8206,207.54,207.42,2.59]
[1755926706114,4.8206,207.54,207.36,4.8246]
[1755926706320,28.9237,207.54,207.37,2.59]
[1755926706516,4.8207,207.53,207.37,2.59]
[1755926706828,2.77,207.49,207.37,2.59]
[1755926707317,7.5906,207.54,207.37,2.59]
[1755926707518,2.77,207.43,207.24,2.59]
[1755926708116,2.77,207.43,207.25,24.1361]
[1755926708321,2.77,207.43,207.26,2.59]
[1755926708524,24.1165,207.42,207.26,2.59]
[1755926709121,7.5931,207.43,207.26,2.59]
[1755926709317,2.77,207.43,207.26,2.59]
[1755926709718,17.77735634,207.5,207.26,2.59]
[1755926709719,28.9282,207.51,207.26,2.59]
[1755926709920,240.7806,207.76,207.26,2.59]
[1755926709921,2.77,207.54,207.35,2.59]
[1755926710125,2.77,207.54,207.36,24.1233]
[1755926710427,2.77,207.54,207.37,2.59]
[1755926710625,2.77,207.54,207.39,28.9434]
[1755926710923,2.77,207.6,207.39,2.59]
[1755926711123,24.1004,207.56,207.39,2.59]
[1755926711324,7.5903,207.55,207.39,2.59]
[1755926711519,2.77,207.55,207.39,2.59]
[1755926712126,28.9237,207.54,207.39,2.59]
[1755926712724,2.77,207.55,207.4,4.8237]
[1755926712924,2.77,207.6,207.39,2.59]
[1755926713626,2.77,207.6,207.46,2.59]
[1755926714725,2.77,207.64,207.47,28.9328]
[1755926715824,2.77,207.64,207.16,4.97431996]
[1755926716032,2.77,207.56,207.4,2.59]
[1755926716729,24.104,207.53,207.4,2.59]
[1755926716928,24.1049,207.52,207.4,2.59]
[1755926717122,26.8749,207.52,207.4,2.59]
[1755926718538,28.9287,207.5,207.4,2.59]
[1755926718728,2.77,207.48,207.27,2.59]
[1755926718936,2.77,207.46,207.27,2.59]
[1755926719135,28.9398,207.42,207.27,2.59]
[1755926719733,2.77,207.39,207.21,2.59]
[1755926720328,4.8251,207.34,207.21,2.59]
[1755926720535,2.77,207.39,207.21,2.59]
[1755926720729,24.1213,207.38,207.21,2.59]
[1755926720922,24.1225,207.37,207.21,2.59]
[1755926721122,17.77735634,207.36,207.16,2.59]
[1755926721328,7.5951,207.35,207.18,4.8287]
[1755926721523,31.7198,207.35,207.18,4.8287]
[1755926721730,26.8947,207.35,207.16,2.59]
[1755926721927,4.8256,207.33,207.16,2.59]
[1755926722232,2.77,207.32,207.16,2.59]
[1755926722928,2.77,207.32,207.17,28.9742]
[1755926723430,4.8259,207.31,207.16,2.59]
[1755926723932,4.8259,207.31,207.16,3.42972781]
[1755926724827,2.77,207.32,207.16,3.42972781]
[1755926725028,2.77,207.39,207.18,24.1443]
[1755926725332,2.77,207.39,207.24,2.59]
[1755926725634,2.77,207.39,207.25,4.827]
[1755926726128,2.77,207.39,207.27,4.8265]
[1755926727231,24.1114,207.47,207.3,4.826]
[1755926727425,2.77,207.46,207.3,4.826]
[1755926727935,28.9358,207.45,207.3,4.826]
[1755926728136,4.8226,207.45,207.3,4.826]
[1755926728635,28.9357,207.45,207.3,4.826]
[1755926728835,4.8232,207.43,207.29,2.59]
[1755926729033,2.77,207.43,207.17,2.59]
[1755926729634,4.8253,207.34,207.19,4.8285]
[1755926729832,4.8253,207.34,207.17,2.59]
[1755926729833,2.77,207.34,207.17,2.59]
[1755926730235,24.1272,207.33,207.17,2.59]
[1755926730737,2.77,207.32,207.17,2.59]
[1755926730938,24.1293,207.31,207.17,2.59]
[1755926731138,24.132,207.29,207.11,2.59]
[1755926731335,2.77,207.3,207.11,2.59]
[1755926731639,4.8271,207.26,207.12,4.8302]
[1755926732336,4.8264,207.29,207.14,4.8296]
[1755926732534,2.77,207.3,207.15,2.59]
[1755926733334,2.77,207.3,207.17,24.1456]
[1755926733539,2.79,207.38,207.18,2.71]
[1755926733741,2.79,207.38,207.19,2.71]
[1755926733941,2.79,207.38,207.27,4.8266]
[1755926734544,4.8229,207.44,207.26,2.71]
[1755926734744,24.113,207.45,207.26,2.71]
[1755926735547,4.8234,207.42,207.27,24.1337]
[1755926736446,4.8234,207.42,207.3,4.8259]
[1755926736650,28.9357,207.45,207.3,4.8259]
[1755926736847,2.79,207.46,207.36,4.8246]
[1755926737045,2.79,207.46,207.3,2.71]
[1755926737240,7.6124,207.46,207.3,2.71]
[1755926738345,2.79,207.52,207.32,2.71]
[1755926739049,2.79,207.52,207.35,24.1239]
[1755926739252,2.79,207.52,207.36,2.71]
[1755926739851,4.8221,207.47,207.36,2.71]
[1755926740249,2.79,207.48,207.36,2.71]
[1755926740650,4.8227,207.45,207.36,2.71]
[1755926741344,7.6119,207.48,207.36,2.71]
[1755926741549,2.79,207.48,207.36,2.71]
[1755926742052,4.8227,207.45,207.36,2.71]
[1755926742252,4.8227,207.45,207.3,24.1303]
[1755926742454,2.79,207.43,207.31,2.71]
[1755926743551,4.8236,207.41,207.31,2.71]
[1755926743757,2.79,207.43,207.31,2.71]
[1755926744549,2.79,207.43,207.32,1.87801526]
[1755926744750,4.8222,207.47,207.31,26.8392]
[1755926744954,4.8222,207.47,207.32,1.87807138]
[1755926745150,4.8226,207.45,207.32,4.8254]
[1755926745351,2.79,207.46,207.31,2.71]
[1755926745561,2.79,207.46,207.25,2.71]
[1755926745759,2.79,207.46,207.26,9.8732826]
[1755926745955,4.8236,207.41,207.28,4.8265]
[1755926746551,2.79,207.42,207.25,2.71]
[1755926747060,4.8246,207.37,207.25,2.71]
[1755926747259,7.6146,207.37,207.26,1.8861126]
[1755926747458,7.6146,207.37,207.25,2.71]
[1755926747655,7.6146,207.37,207.26,1.88685737]
[1755926747857,7.6146,207.37,207.25,2.71]
[1755926748654,2.79,207.37,207.26,1.88714937]
[1755926748850,2.79,207.37,207.19,2.71]
[1755926749054,2.79,207.37,207.21,4.8281]
[1755926749255,2.79,207.37,207.22,6.11762795]
[1755926749456,2.79,207.37,207.23,1.88787701]
[1755926749658,2.79,207.37,207.19,2.71]
[1755926749853,2.79,207.37,207.2,9.91260507]
[1755926750055,4.8255,207.33,207.21,6.11521179]
[1755926750260,4.8255,207.33,207.22,1.88739885]
[1755926750461,4.8255,207.33,207.2,4.8283]
[1755926750659,4.8255,207.33,207.21,6.11565184]
[1755926750859,4.8255,207.33,207.22,1.88753409]
[1755926751165,4.826,207.31,207.2,4.8283]
[1755926751457,2.79,207.33,207.21,9.90943548]
[1755926751662,2.79,207.33,207.22,9.9089659]
[1755926751863,2.79,207.33,207.23,6.11365745]
[1755926752063,2.79,207.33,207.24,6.11365745]
[1755926752264,2.79,207.33,207.25,4.22432735]
[1755926752466,2.79,207.33,207.26,1.88720096]
[1755926752660,2.79,207.39,207.24,2.71]
[1755926752856,24.1231,207.37,207.25,6.1147367]
[1755926753060,2.79,207.36,207.19,2.71]
[1755926753261,2.79,207.36,207.2,6.1193924]
[1755926753464,2.79,207.36,207.21,6.1193924]
[1755926753661,2.79,207.36,207.22,6.1193924]
[1755926753863,2.79,207.36,207.23,1.88868891]
[1755926754061,2.79,207.36,207.2,4.8283]
[1755926754266,2.79,207.36,207.21,6.11663104]
[1755926754467,2.79,207.36,207.22,6.11582033]
[1755926754662,2.79,207.36,207.23,1.88783724]
[1755926754963,2.79,207.31,207.13,6.54593749]
[1755926755166,2.79,207.31,207.14,9.91642038]
[1755926755469,2.79,207.31,207.15,6.1182785]
[1755926755666,2.79,207.31,207.16,1.88815497]
[1755926755866,4.8273,207.25,207.17,1.88850336]
[1755926756168,4.8273,207.25,207.13,2.71]
[1755926756363,4.8273,207.25,207.14,10.94920894]
[1755926756564,4.8273,207.25,207.15,6.11950894]
[1755926756767,4.8273,207.25,207.14,4.8297]
[1755926756962,4.8273,207.25,207.15,6.11993076]
[1755926757167,4.8273,207.25,207.14,4.8297]
[1755926757368,2.79,207.27,207.15,6.11895409]
[1755926757568,2.79,207.27,207.14,24.1488]
[1755926757866,2.79,207.34,207.2,2.71]
[1755926758371,2.79,207.3,207.12,2.71]
[1755926759369,4.8277,207.23,207.12,7.5402]
[1755926760265,4.8277,207.23,207.12,2.71]
[1755926760470,24.1374,207.24,207.12,2.71]
[1755926760674,26.9309,207.21,207.04,4.8321]
[1755926760866,26.9309,207.21,207.05,6.1416839]
[1755926761070,4.8291,207.17,207.04,4.8321]
[1755926761275,4.8291,207.17,207.05,4.24564739]
[1755926761467,4.8291,207.17,207.04,4.8321]
[1755926761663,4.8291,207.17,207.05,4.24778612]
[1755926761868,2.79,207.17,207.03,3.5502144]
[1755926762070,2.79,207.17,207.03,2.71]
[1755926762269,2.79,207.17,206.98,0.84035643]
[1755926762468,24.1468,207.16,206.99,10.97827919]
[1755926762770,2.79,207.17,207.01,2.71]
[1755926763965,4.8301,207.13,207.01,7.5427]
[1755926764163,4.8301,207.13,207.01,2.71]
[1755926764772,2.73,207.09,206.98,0.84035643]
[1755926764963,2.73,207.09,206.93,2.69]
[1755926765163,329.2701,207.13,206.99,2.69]
[1755926765367,324.44,207.13,206.99,2.69]
[1755926765567,324.44,207.13,206.99,26.8562]
[1755926766275,324.44,207.13,206.99,2.69]
[1755926766971,324.44,207.13,206.9,24.1762]
[1755926766972,2.73,207.1,206.91,2.69]
[1755926767669,2.73,207.04,206.91,2.69]
[1755926769075,4.8329,207.01,206.91,2.69]
[1755926769474,143.6622,207.04,206.91,2.69]
[1755926769972,7.5622,207.04,206.91,2.69]
[1755926770775,4.8326,207.02,206.91,2.69]
[1755926771167,2.73,207.04,206.91,2.69]
[1755926771773,7.5622,207.04,206.92,4.8349]
[1755926771969,2.73,207.04,206.92,4.8349]
[1755926772174,2.73,207.06,206.91,2.69]
[1755926772474,4.8319,207.05,206.91,2.69]
[1755926772669,2.73,207.06,206.91,2.69]
[1755926773978,2.73,207.06,206.95,2.69]
[1755926774773,2.73,207.12,206.96,4.8338]
[1755926774974,24.1527,207.11,206.96,4.8338]
[1755926775178,2.73,207.12,206.97,2.69]
[1755926775368,4.831,207.09,206.97,2.69]
[1755926776377,4.831,207.09,206.98,4.8335]
[1755926776580,143.7003,207.12,206.97,2.69]
[1755926776783,7.5603,207.12,207.0,4.8329]
[1755926777476,2.73,207.24,207.05,17.77735634]
[1755926777678,2.73,207.24,207.08,2.69]
[1755926778274,2.73,207.33,207.11,2.69]
[1755926778575,4.8271,207.26,207.14,4.8296]
[1755926778770,24.1303,207.3,207.14,4.8296]
[1755926779076,24.1303,207.3,207.12,24.1511]
[1755926779077,2.73,207.31,207.15,2.69]
[1755926779278,2.73,207.31,207.16,4.8291]
[1755926779478,26.8594,207.31,207.16,4.8291]
[1755926779875,26.8594,207.31,207.15,2.69]
[1755926780276,162.9594,207.31,207.15,2.69]
[1755926780574,2.73,207.25,207.15,2.69]
[1755926780881,2.73,207.25,207.09,2.69]
[1755926781081,2.73,207.25,207.09,26.8447]
[1755926781275,2.73,207.25,207.12,2.69]
[1755926782472,24.1352,207.26,207.06,2.69]
[1755926782673,2.73,207.21,207.06,2.69]
[1755926783581,4.8287,207.19,207.06,2.69]
[1755926784478,4.8287,207.19,207.07,4.8314]
[1755926784671,2.73,207.21,207.08,2.69]
[1755926785476,2.73,207.21,207.11,4.8303]
[1755926785677,4.8273,207.25,207.12,2.69]
[1755926785977,2.73,207.27,207.15,4.8294]
[1755926786180,2.73,207.27,207.09,24.1545]
[1755926786382,2.73,207.27,207.04,24.1598]
[1755926786383,2.73,207.27,207.11,2.69]
[1755926786580,4.8273,207.25,207.12,4.8302]
[1755926787279,4.8273,207.25,207.14,4.8296]
[1755926787884,2.73,207.27,207.12,24.1509]
[1755926788082,2.73,207.32,207.15,2.69]
[1755926788278,2.73,207.32,207.17,2.69]
[1755926788580,2.73,207.32,207.18,2.69]
[1755926788778,324.74,207.34,207.18,2.69]
[1755926788981,2.73,207.37,207.18,2.69]
[1755926789384,2.73,207.37,207.25,4.8271]
[1755926789680,2.73,207.37,207.24,2.69]